[Event "Commonwealth Open 2019"]
[Site "Delhi"]
[Date "2019.07.07"]
[Round "9.17"]
[White "Sangma, Rahul"]
[Black "Sanjeet, Manohar"]
[Result "1-0"]
[ECO "C91"]
[WhiteElo "2298"]
[BlackElo "1905"]
[Annotator "NA"]
[PlyCount "93"]
[EventDate "2019.06.30"]
[EventType "swiss"]
[EventCountry "IND"]
[SourceTitle "playchess.com"]
[Source "ChessBase"]
[SourceQuality "1"]
[TimeControl "5400+30"]

1. e4 {[%emt 0:00:00]} e5 {[%emt 0:00:00]} 2. Nf3 {[%emt 0:00:00]} Nc6 {[%emt 0:00:00]} 3. Bb5 {[%emt 0:00:46]} a6 {[%emt 0:00:00]} 4. Ba4 {[%emt 0:00:02]} Nf6 {[%emt 0:00:04]} 5. O-O {[%emt 0:00:38]} Be7 {[%emt 0:00:28]} 6. Re1 {[%emt 0:02:03]} b5 {[%emt 0:00:08]} 7. Bb3 {[%emt 0:00:04]} d6 {[%emt 0:00:04]} 8. c3 {[%emt 0:00:05]} O-O {[%emt 0:00:05]} 9. d4 {[%emt 0:00:04]} Bg4 {[%emt 0:01:28]} 10. Be3 {[%emt 0:00:49]} exd4 {[%emt 0:00:10]} 11. cxd4 {[%emt 0:00:02]} Na5 {[%emt 0:00:10]} 12. Bc2 {[%emt 0:00:02]} Nc4 {[%emt 0:00:07]} 13. Bc1 {[%emt 0:00:11]} c5 {[%emt 0:00:06]} 14. b3 {[%emt 0:00:54]} Nb6 {[%emt 0:02:50]} 15. Nbd2 {[%emt 0:00:48]} Rc8 {[%emt 0:16:41]} 16. Bb2 {[%emt 0:00:19]} cxd4 {[%emt 0:04:31]} 17. Qb1 {[%emt 0:06:11]} Bh5 {[%emt 0:15:13]} 18. Nxd4 {[%emt 0:01:44]} Bg6 {[%emt 0:00:42]} 19. f4 {[%emt 0:02:48]} d5 {[%emt 0:05:56]} 20. f5 {[%emt 0:03:41]} dxe4 {[%emt 0:03:08]} 21. Nxe4 {[%emt 0:17:29]} Bh5 {[%emt 0:02:55]} 22. Kh1 {[%emt 0:01:50]} Bb4 {[%emt 0:06:26]} 23. Nxf6+ {[%emt 0:10:23]} Qxf6 {[%emt 0:07:23]} 24. Ne6 {[%emt 0:04:43]} Qh4 {[%emt 0:00:48]} 25. Re4 {[%emt 0:03:00]} Qf2 {[%emt 0:00:12]} 26. Bd4 {[%emt 0:00:22]} Qd2 {[%emt 0:06:36]} 27. Be3 {[%emt 0:02:14]} Qc3 {[%emt 0:01:05]} 28. Nxf8 {[%emt 0:01:16]} Nd5 {[%emt 0:00:52]} 29. Bd4 {[%emt 0:06:51]} Qd2 {[%emt 0:00:13]} 30. Nd7 {[%emt 0:02:34]} Nc3 {[%emt 0:15:00]} 31. Bxc3 {[%emt 0:02:43]} Bxc3 {[%emt 0:00:05]} 32. Nb6 {[%emt 0:00:10]} Rd8 {[%emt 0:03:23]} 33. Qe1 {[%emt 0:01:09]} Qxe1+ {[%emt 0:02:24]} 34. Raxe1 {[%emt 0:00:08]} Bxe1 {[%emt 0:00:06]} 35. Rxe1 {[%emt 0:00:06]} Kf8 {[%emt 0:01:10]} 36. a4 {[%emt 0:01:02]} Rd6 {[%emt 0:00:30]} 37. a5 {[%emt 0:00:53]} f6 {[%emt 0:00:17]} 38. Be4 {[%emt 0:01:16]} Bf7 {[%emt 0:00:18]} 39. Bb7 {[%emt 0:00:56]} Bxb3 {[%emt 0:00:21]} 40. Bxa6 {[%emt 0:00:03]} b4 {[%emt 0:00:11]} 41. Bb7 {[%emt 0:00:46]} Bc2 {[%emt 0:00:38]} 42. a6 {[%emt 0:00:37]} b3 {[%emt 0:00:04]} 43. a7 {[%emt 0:00:26]} Rd8 {[%emt 0:00:05]} 44. a8=Q {[%emt 0:03:05]} Rxa8 {[%emt 0:00:08]} 45. Bxa8 {[%emt 0:00:06]} b2 {[%emt 0:00:05]} 46. Nd7+ {[%emt 0:00:08]} Kf7 {[%emt 0:00:37]} 47. Bd5# {[%emt 0:00:02]} 1-0

[Event "Commonwealth Open 2019"]
[Site "Delhi"]
[Date "2019.07.07"]
[Round "9.18"]
[White "Mahalakshmi, M."]
[Black "Sanskriti, Goyal"]
[Result "1-0"]
[ECO "A61"]
[WhiteElo "2245"]
[BlackElo "1951"]
[Annotator "NA"]
[PlyCount "87"]
[EventDate "2019.06.30"]
[EventType "swiss"]
[EventCountry "IND"]
[SourceTitle "playchess.com"]
[Source "ChessBase"]
[SourceQuality "1"]
[TimeControl "5400+30"]

1. d4 {[%emt 0:00:00]} Nf6 {[%emt 0:00:00]} 2. c4 {[%emt 0:00:00]} c5 {[%emt 0:00:00]} 3. d5 {[%emt 0:00:00]} e6 {[%emt 0:00:04]} 4. Nc3 {[%emt 0:00:00]} exd5 {[%emt 0:00:03]} 5. cxd5 {[%emt 0:00:05]} d6 {[%emt 0:00:04]} 6. Nf3 {[%emt 0:00:03]} g6 {[%emt 0:00:02]} 7. Nd2 {[%emt 0:00:37]} Bg7 {[%emt 0:00:49]} 8. Nc4 {[%emt 0:00:11]} O-O {[%emt 0:00:22]} 9. Bf4 {[%emt 0:00:33]} Ne8 {[%emt 0:00:07]} 10. Qd2 {[%emt 0:01:56]} b6 {[%emt 0:19:29]} 11. e3 {[%emt 0:00:52]} Ba6 {[%emt 0:02:17]} 12. a4 {[%emt 0:01:18]} Bxc4 {[%emt 0:01:34]} 13. Bxc4 {[%emt 0:00:02]} Nd7 {[%emt 0:02:28]} 14. O-O {[%emt 0:05:23]} Ne5 {[%emt 0:05:45]} 15. Bb5 {[%emt 0:05:08]} a6 {[%emt 0:03:57]} 16. Bxe5 {[%emt 0:04:03]} Bxe5 {[%emt 0:00:44]} 17. Bc6 {[%emt 0:01:03]} Rb8 {[%emt 0:04:26]} 18. Rab1 {[%emt 0:06:18]} Nc7 {[%emt 0:11:20]} 19. Qd3 {[%emt 0:03:36]} Qe7 {[%emt 0:13:42]} 20. Rfc1 {[%emt 0:08:37]} f5 {[%emt 0:04:46]} 21. f4 {[%emt 0:10:53]} Bg7 {[%emt 0:01:35]} 22. Re1 {[%emt 0:02:29]} Qf6 {[%emt 0:04:57]} 23. Re2 {[%emt 0:04:33]} g5 {[%emt 0:03:04]} 24. Rf1 {[%emt 0:06:55]} Qg6 {[%emt 0:09:15]} 25. fxg5 {[%emt 0:01:47]} Qxg5 {[%emt 0:01:16]} 26. Ref2 {[%emt 0:00:04]} c4 {[%emt 0:01:50]} 27. Rxf5 {[%emt 0:05:47]} Rxf5 {[%emt 0:06:09]} 28. Rxf5 {[%emt 0:02:57]} cxd3 {[%emt 0:01:34]} 29. Rxg5 {[%emt 0:00:01]} Rf8 {[%emt 0:00:53]} 30. Nd1 {[%emt 0:01:47]} Kh8 {[%emt 0:01:33]} 31. g4 {[%emt 0:04:53]} b5 {[%emt 0:00:40]} 32. a5 {[%emt 0:00:34]} Be5 {[%emt 0:00:42]} 33. Kg2 {[%emt 0:05:50]} Bxh2 {[%emt 0:00:23]} 34. Kxh2 {[%emt 0:00:30]} Rf1 {[%emt 0:00:02]} 35. Nc3 {[%emt 0:00:15]} b4 {[%emt 0:00:14]} 36. Ne4 {[%emt 0:00:22]} d2 {[%emt 0:00:32]} 37. Nxd2 {[%emt 0:01:21]} Rf2+ {[%emt 0:00:01]} 38. Kg3 {[%emt 0:00:43]} Rxd2 {[%emt 0:00:01]} 39. e4 {[%emt 0:02:17]} Rxb2 {[%emt 0:00:28]} 40. e5 {[%emt 0:00:39]} dxe5 {[%emt 0:01:41]} 41. d6 {[%emt 0:00:45]} Rc2 {[%emt 0:00:52]} 42. d7 {[%emt 0:00:49]} Rd2 {[%emt 0:00:30]} 43. Rxe5 {[%emt 0:00:17]} Kg7 {[%emt 0:00:37]} 44. Rd5 {[%emt 0:02:17]} 1-0

[Event "Commonwealth Open 2019"]
[Site "Delhi"]
[Date "2019.07.07"]
[Round "9.19"]
[White "Aaryan Varshney"]
[Black "Oatlhotse, Providence"]
[Result "1/2-1/2"]
[ECO "E15"]
[WhiteElo "2284"]
[BlackElo "2244"]
[Annotator "NA"]
[PlyCount "120"]
[EventDate "2019.06.30"]
[EventType "swiss"]
[EventCountry "IND"]
[SourceTitle "playchess.com"]
[Source "ChessBase"]
[SourceQuality "1"]
[TimeControl "5400+30"]

1. d4 {[%emt 0:00:00]} Nf6 {[%emt 0:00:00]} 2. Nf3 {[%emt 0:00:00]} e6 {[%emt 0:00:02]} 3. c4 {[%emt 0:00:00]} b6 {[%emt 0:00:02]} 4. g3 {[%emt 0:00:00]} Ba6 {[%emt 0:00:01]} 5. b3 {[%emt 0:00:00]} Bb4+ {[%emt 0:00:11]} 6. Bd2 {[%emt 0:00:01]} Be7 {[%emt 0:00:02]} 7. Bg2 {[%emt 0:00:08]} c6 {[%emt 0:00:03]} 8. O-O {[%emt 0:00:32]} d5 {[%emt 0:00:02]} 9. Ne5 {[%emt 0:04:01]} Nfd7 {[%emt 0:00:04]} 10. Nxd7 {[%emt 0:02:07]} Nxd7 {[%emt 0:00:04]} 11. Bc3 {[%emt 0:00:39]} Rc8 {[%emt 0:00:18]} 12. Nd2 {[%emt 0:00:14]} f5 {[%emt 0:00:14]} 13. Rc1 {[%emt 0:01:14]} O-O {[%emt 0:00:17]} 14. Bb2 {[%emt 0:01:29]} Qe8 {[%emt 0:01:10]} 15. a3 {[%emt 0:00:41]} Qh5 {[%emt 0:01:20]} 16. e3 {[%emt 0:00:40]} Qh6 {[%emt 0:00:23]} 17. b4 {[%emt 0:00:49]} Bb7 {[%emt 0:01:55]} 18. cxd5 {[%emt 0:01:55]} exd5 {[%emt 0:01:28]} 19. Qa4 b5 {[%emt 0:04:10]} 20. Qxa7 {[%emt 0:15:38]} Rb8 {[%emt 0:00:10]} 21. a4 {[%emt 0:04:36]} Bxb4 {[%emt 0:08:32]} 22. Nf3 {[%emt 0:01:44]} bxa4 {[%emt 0:08:32]} 23. Qxa4 {[%emt 0:00:59]} Bd6 {[%emt 0:00:35]} 24. Ba1 {[%emt 0:10:55]} Nb6 {[%emt 0:02:45]} 25. Qa7 {[%emt 0:03:48]} Nc8 {[%emt 0:09:18]} 26. Qa2 {[%emt 0:00:52]} Ra8 {[%emt 0:00:26]} 27. Qc2 {[%emt 0:06:07]} Ba6 {[%emt 0:02:26]} 28. Rfe1 {[%emt 0:01:21]} Bc4 {[%emt 0:04:30]} 29. Nd2 {[%emt 0:02:22]} Ra2 {[%emt 0:02:28]} 30. Bb2 {[%emt 0:00:49]} Nb6 {[%emt 0:07:49]} 31. Ra1 {[%emt 0:00:53]} Rfa8 {[%emt 0:04:32]} 32. Rxa2 {[%emt 0:02:20]} Rxa2 {[%emt 0:00:05]} 33. Ra1 {[%emt 0:00:31]} Rxa1+ {[%emt 0:02:17]} 34. Bxa1 {[%emt 0:00:03]} Qh5 {[%emt 0:01:23]} 35. Bf3 {[%emt 0:00:33]} Qf7 {[%emt 0:00:41]} 36. Nxc4 {[%emt 0:01:52]} Nxc4 {[%emt 0:00:08]} 37. Be2 {[%emt 0:01:31]} Bf8 {[%emt 0:04:41]} 38. Bd3 {[%emt 0:03:09]} g6 {[%emt 0:03:36]} 39. Kg2 {[%emt 0:00:42]} Qe6 {[%emt 0:01:12]} 40. Bc3 {[%emt 0:00:27]} h5 {[%emt 0:08:03]} 41. h4 {[%emt 0:01:34]} Bd6 {[%emt 0:01:32]} 42. Qe2 {[%emt 0:03:42]} Bf8 {[%emt 0:04:07]} 43. Qa2 {[%emt 0:00:48]} Be7 {[%emt 0:05:58]} 44. Kh2 {[%emt 0:06:02]} Kf7 {[%emt 0:01:41]} 45. Qa7 {[%emt 0:01:04]} Kf8 {[%emt 0:02:12]} 46. Qb8+ {[%emt 0:00:51]} Kf7 {[%emt 0:00:10]} 47. Qb7 {[%emt 0:01:13]} Kf8 {[%emt 0:00:44]} 48. Bb4 {[%emt 0:02:33]} Bxb4 {[%emt 0:00:40]} 49. Qxb4+ {[%emt 0:00:04]} Nd6 {[%emt 0:03:38]} 50. Qb8+ {[%emt 0:00:45]} Ke7 {[%emt 0:00:18]} 51. Ba6 {[%emt 0:00:43]} Ne4 {[%emt 0:02:50]} 52. Kg1 {[%emt 0:01:15]} c5 {[%emt 0:02:42]} 53. Qc7+ {[%emt 0:01:46]} Kf8 {[%emt 0:01:39]} 54. Bb7 {[%emt 0:00:39]} cxd4 {[%emt 0:00:37]} 55. Qd8+ Qe8 {[%emt 0:00:28]} 56. Qxe8+ {[%emt 0:02:26]} Kxe8 {[%emt 0:00:01]} 57. exd4 {[%emt 0:00:01]} Nc3 {[%emt 0:01:17]} 58. Bc6+ {[%emt 0:00:05]} Ke7 {[%emt 0:00:12]} 59. Kf1 {[%emt 0:04:24]} f4 {[%emt 0:00:33]} 60. gxf4 {[%emt 0:00:19]} Ke6 {[%emt 0:00:02]} 1/2-1/2

[Event "Commonwealth Open 2019"]
[Site "Delhi"]
[Date "2019.07.07"]
[Round "9.20"]
[White "Arpita, Mukherjee"]
[Black "Jubin Jimmy"]
[Result "1-0"]
[ECO "B12"]
[WhiteElo "2248"]
[BlackElo "2219"]
[Annotator "NA"]
[PlyCount "81"]
[EventDate "2019.06.30"]
[EventType "swiss"]
[EventCountry "IND"]
[SourceTitle "playchess.com"]
[Source "ChessBase"]
[SourceQuality "1"]
[TimeControl "5400+30"]

1. e4 {[%emt 0:00:22]} c6 {[%emt 0:00:00]} 2. d4 {[%emt 0:00:11]} d5 {[%emt 0:00:00]} 3. e5 {[%emt 0:00:04]} Bf5 {[%emt 0:00:01]} 4. Nf3 {[%emt 0:00:06]} e6 {[%emt 0:00:05]} 5. Be2 {[%emt 0:00:06]} Nd7 {[%emt 0:00:07]} 6. O-O {[%emt 0:00:12]} Ne7 {[%emt 0:00:10]} 7. Re1 {[%emt 0:00:25]} h6 {[%emt 0:02:22]} 8. a4 {[%emt 0:00:16]} g5 {[%emt 0:02:16]} 9. Bd3 {[%emt 0:07:48]} Bxd3 {[%emt 0:05:13]} 10. Qxd3 {[%emt 0:00:08]} Ng6 {[%emt 0:00:38]} 11. h3 {[%emt 0:01:22]} Bg7 {[%emt 0:03:07]} 12. c4 {[%emt 0:10:33]} dxc4 {[%emt 0:03:18]} 13. Qxc4 {[%emt 0:00:14]} Nb6 {[%emt 0:00:46]} 14. Qb3 {[%emt 0:00:31]} Qd5 {[%emt 0:04:52]} 15. Qc2 {[%emt 0:04:19]} Qd7 {[%emt 0:01:41]} 16. Nc3 {[%emt 0:00:35]} O-O {[%emt 0:01:20]} 17. Ne4 {[%emt 0:00:40]} Nd5 {[%emt 0:01:23]} 18. Nc5 {[%emt 0:03:39]} Qe7 {[%emt 0:04:48]} 19. b3 {[%emt 0:02:41]} b6 {[%emt 0:03:35]} 20. Ne4 {[%emt 0:00:50]} Qd7 {[%emt 0:02:47]} 21. Ba3 {[%emt 0:00:49]} Rfc8 {[%emt 0:01:22]} 22. g3 {[%emt 0:02:15]} Bf8 {[%emt 0:05:36]} 23. Bxf8 {[%emt 0:02:06]} Kxf8 {[%emt 0:02:35]} 24. Rac1 {[%emt 0:02:03]} Kg7 {[%emt 0:04:40]} 25. Qe2 {[%emt 0:06:10]} Qe7 {[%emt 0:04:03]} 26. Rc4 {[%emt 0:09:18]} Rc7 {[%emt 0:03:32]} 27. Rec1 {[%emt 0:00:55]} Qa3 {[%emt 0:10:47]} 28. Qd1 {[%emt 0:02:04]} Rd8 {[%emt 0:03:33]} 29. Rxc6 {[%emt 0:11:06]} Rxc6 {[%emt 0:00:57]} 30. Rxc6 {[%emt 0:00:02]} Nge7 {[%emt 0:00:39]} 31. Rc4 {[%emt 0:00:16]} Nf5 {[%emt 0:00:49]} 32. g4 {[%emt 0:04:44]} Nfe7 {[%emt 0:02:24]} 33. h4 {[%emt 0:00:21]} gxh4 {[%emt 0:01:07]} 34. Nxh4 {[%emt 0:01:04]} Nf4 {[%emt 0:02:05]} 35. Qf3 {[%emt 0:01:58]} Ned5 {[%emt 0:00:50]} 36. Ng2 {[%emt 0:00:54]} Qa1+ {[%emt 0:02:43]} 37. Kh2 {[%emt 0:01:32]} Ng6 {[%emt 0:00:27]} 38. Nf6 {[%emt 0:00:42]} Nde7 {[%emt 0:03:59]} 39. Nh5+ {[%emt 0:01:31]} Kf8 {[%emt 0:00:02]} 40. Ngf4 {[%emt 0:02:15]} Ke8 {[%emt 0:02:20]} 41. Ng7+ 1-0

[Event "Commonwealth Open 2019"]
[Site "Delhi"]
[Date "2019.07.07"]
[Round "9.21"]
[White "Kiran, Manisha Mohanty"]
[Black "Thipsay, Praveen M"]
[Result "0-1"]
[ECO "C55"]
[WhiteElo "2054"]
[BlackElo "2405"]
[Annotator "NA"]
[PlyCount "62"]
[EventDate "2019.06.30"]
[EventType "swiss"]
[EventCountry "IND"]
[SourceTitle "playchess.com"]
[Source "ChessBase"]
[SourceQuality "1"]
[TimeControl "5400+30"]

1. e4 {[%emt 0:00:38]} e5 {[%emt 0:00:00]} 2. Nf3 {[%emt 0:00:08]} Nc6 {[%emt 0:00:00]} 3. Bc4 {[%emt 0:00:07]} Nf6 {[%emt 0:00:42]} 4. d3 {[%emt 0:00:19]} Be7 {[%emt 0:03:32]} 5. Nc3 {[%emt 0:01:29]} d6 {[%emt 0:00:44]} 6. a3 {[%emt 0:00:13]} O-O {[%emt 0:01:11]} 7. h3 {[%emt 0:00:43]} Be6 {[%emt 0:05:31]} 8. Nd5 {[%emt 0:00:20]} Bxd5 {[%emt 0:01:18]} 9. exd5 {[%emt 0:00:06]} Nb8 {[%emt 0:00:11]} 10. Qe2 {[%emt 0:00:06]} Nbd7 {[%emt 0:01:14]} 11. Be3 {[%emt 0:00:25]} Nb6 {[%emt 0:03:09]} 12. Bxb6 {[%emt 0:00:51]} axb6 {[%emt 0:00:06]} 13. O-O {[%emt 0:00:19]} c6 {[%emt 0:06:57]} 14. dxc6 {[%emt 0:03:31]} bxc6 {[%emt 0:00:25]} 15. Bb3 {[%emt 0:00:05]} Qd7 {[%emt 0:02:37]} 16. Rad1 {[%emt 0:05:15]} Rae8 {[%emt 0:00:27]} 17. Nd2 {[%emt 0:09:58]} g6 {[%emt 0:19:06]} 18. Qe3 {[%emt 0:05:47]} Bd8 {[%emt 0:01:03]} 19. Ne4 {[%emt 0:07:37]} Nh5 {[%emt 0:05:37]} 20. d4 {[%emt 0:03:32]} d5 {[%emt 0:01:44]} 21. dxe5 {[%emt 0:04:33]} Rxe5 {[%emt 0:00:05]} 22. Qd4 {[%emt 0:00:49]} Qe7 {[%emt 0:05:08]} 23. Nc3 {[%emt 0:02:10]} Bc7 {[%emt 0:00:29]} 24. Qb4 {[%emt 0:15:04]} Qf6 {[%emt 0:10:03]} 25. Bxd5 {[%emt 0:09:43]} cxd5 {[%emt 0:00:16]} 26. Nxd5 {[%emt 0:00:05]} Rxd5 {[%emt 0:00:38]} 27. Rxd5 {[%emt 0:00:03]} Nf4 {[%emt 0:00:06]} 28. Rb5 {[%emt 0:06:26]} Ne2+ {[%emt 0:00:31]} 29. Kh1 {[%emt 0:01:31]} Ng3+ {[%emt 0:00:06]} 30. fxg3 {[%emt 0:00:04]} Qxf1+ {[%emt 0:00:07]} 31. Kh2 {[%emt 0:00:04]} Re8 {[%emt 0:00:55]} 0-1

[Event "Commonwealth Open 2019"]
[Site "Delhi"]
[Date "2019.07.07"]
[Round "9.22"]
[White "Sumit, Grover"]
[Black "Michelle Catherina, P."]
[Result "1/2-1/2"]
[ECO "D79"]
[WhiteElo "1875"]
[BlackElo "2226"]
[Annotator "NA"]
[PlyCount "109"]
[EventDate "2019.06.30"]
[EventType "swiss"]
[EventCountry "IND"]
[SourceTitle "playchess.com"]
[Source "ChessBase"]
[SourceQuality "1"]
[TimeControl "5400+30"]

1. Nf3 d5 {[%emt 0:06:03]} 2. g3 {[%emt 0:00:28]} g6 {[%emt 0:00:21]} 3. Bg2 {[%emt 0:00:10]} Bg7 {[%emt 0:00:05]} 4. d4 {[%emt 0:00:23]} Nf6 {[%emt 0:00:23]} 5. O-O {[%emt 0:00:19]} O-O {[%emt 0:00:09]} 6. c4 {[%emt 0:00:07]} c6 {[%emt 0:01:08]} 7. cxd5 {[%emt 0:00:16]} cxd5 {[%emt 0:01:56]} 8. Nc3 {[%emt 0:00:17]} b6 {[%emt 0:06:41]} 9. Bf4 {[%emt 0:03:38]} Bb7 {[%emt 0:02:24]} 10. Rc1 {[%emt 0:01:58]} a6 {[%emt 0:05:28]} 11. Ne5 {[%emt 0:02:03]} Nc6 {[%emt 0:09:31]} 12. Nxd5 {[%emt 0:09:49]} Nxd5 {[%emt 0:01:40]} 13. Nxc6 {[%emt 0:02:18]} Bxc6 {[%emt 0:00:33]} 14. Rxc6 {[%emt 0:00:03]} Nxf4 {[%emt 0:01:58]} 15. gxf4 {[%emt 0:00:02]} Qxd4 {[%emt 0:10:58]} 16. Qxd4 {[%emt 0:02:37]} Bxd4 {[%emt 0:00:06]} 17. e3 {[%emt 0:00:03]} Bg7 {[%emt 0:04:00]} 18. Rxb6 {[%emt 0:01:59]} Rfb8 {[%emt 0:01:18]} 19. Bxa8 {[%emt 0:06:03]} Rxb6 {[%emt 0:00:06]} 20. b3 {[%emt 0:00:05]} Rb8 {[%emt 0:06:44]} 21. Bd5 {[%emt 0:02:55]} a5 {[%emt 0:00:32]} 22. Rc1 {[%emt 0:01:12]} e6 {[%emt 0:01:27]} 23. Bf3 {[%emt 0:01:03]} Bf8 {[%emt 0:00:51]} 24. Rc7 {[%emt 0:02:45]} Bb4 {[%emt 0:02:32]} 25. Ra7 {[%emt 0:05:04]} Rc8 {[%emt 0:03:12]} 26. Ra8 {[%emt 0:06:15]} Rxa8 {[%emt 0:04:45]} 27. Bxa8 {[%emt 0:00:03]} f6 {[%emt 0:02:15]} 28. Kf1 {[%emt 0:00:51]} Kf7 {[%emt 0:01:40]} 29. Ke2 {[%emt 0:00:04]} Ke7 {[%emt 0:01:27]} 30. Bb7 {[%emt 0:00:48]} Kd6 {[%emt 0:02:34]} 31. Bc8 {[%emt 0:00:30]} Bc3 {[%emt 0:03:03]} 32. Kd3 {[%emt 0:00:28]} Be1 {[%emt 0:00:42]} 33. f3 {[%emt 0:01:21]} h5 {[%emt 0:01:38]} 34. h3 {[%emt 0:01:04]} h4 {[%emt 0:00:36]} 35. Ba6 {[%emt 0:00:57]} Bb4 {[%emt 0:01:06]} 36. Bb5 {[%emt 0:00:10]} g5 {[%emt 0:01:20]} 37. fxg5 {[%emt 0:00:10]} fxg5 {[%emt 0:00:02]} 38. Ke4 {[%emt 0:00:30]} Bc5 {[%emt 0:00:32]} 39. Be2 {[%emt 0:00:33]} Bb4 {[%emt 0:00:18]} 40. f4 {[%emt 0:00:34]} gxf4 {[%emt 0:00:24]} 41. exf4 {[%emt 0:00:28]} Be1 {[%emt 0:01:35]} 42. Bc4 {[%emt 0:00:33]} Ke7 {[%emt 0:03:41]} 43. Kf3 {[%emt 0:00:16]} Kf6 {[%emt 0:02:17]} 44. Kg4 {[%emt 0:00:01]} Ke7 {[%emt 0:00:17]} 45. a3 {[%emt 0:00:34]} Kf6 {[%emt 0:00:10]} 46. Bd3 {[%emt 0:03:05]} Kf7 {[%emt 0:01:04]} 47. Kg5 {[%emt 0:00:13]} Ke7 {[%emt 0:00:11]} 48. Bc4 {[%emt 0:00:21]} Kd6 {[%emt 0:00:19]} 49. Kf6 {[%emt 0:00:58]} Bd2 {[%emt 0:00:27]} 50. Bxe6 {[%emt 0:00:30]} Bxf4 {[%emt 0:00:05]} 51. Bf7 {[%emt 0:01:50]} Kc5 {[%emt 0:00:13]} 52. Kf5 {[%emt 0:00:09]} Bg3 {[%emt 0:00:10]} 53. Ke4 {[%emt 0:00:08]} Bd6 {[%emt 0:00:09]} 54. Be8 {[%emt 0:00:17]} Kb6 {[%emt 0:00:06]} 55. a4 1/2-1/2